fUST/lending_fUST_20250816
["ID","MTS","AMOUNT","RATE_DAILY","PERIOD"]
[379639434,1755353451691,-480.0,0.00022465,3]
[379639435,1755353451700,-480.0,0.00022465,3]
[379639436,1755353451710,-480.0,0.00022465,3]
[379639437,1755353451720,-480.0,0.00022465,3]
[379639438,1755353451730,-987.5,0.00022465,3]
[379639439,1755353451740,-480.0,0.00022465,3]
[379639440,1755353451749,-480.0,0.00022465,3]
[379639441,1755353451758,-480.0,0.00022465,3]
[379639442,1755353451768,-480.0,0.00022465,3]
[379639443,1755353451779,-480.0,0.00022465,3]
[379639444,1755353451788,-311.47731221,0.00022465,3]
[379639445,1755353451797,-489.82,0.00022465,3]
[379639446,1755353451806,-480.0,0.00022465,3]
[379639447,1755353451815,-480.0,0.00022465,3]
[379639448,1755353451825,-572.08,0.00022465,3]
[379639449,1755353451834,-480.0,0.00022465,3]
[379639450,1755353451843,-1143.4,0.00022465,3]
[379639451,1755353451852,-651.61,0.00022465,3]
[379639452,1755353451861,-420.0,0.00022465,3]
[379639453,1755353451871,-2177.88,0.00022465,3]
[379639454,1755353451880,-480.0,0.00022465,3]
[379639455,1755353451890,-480.0,0.00022465,3]
[379639456,1755353451899,-480.0,0.00022465,3]
[379639457,1755353451908,-420.0,0.00022465,3]
[379639458,1755353451917,-480.0,0.00022465,3]
[379639459,1755353451926,-480.0,0.00022465,3]
[379639460,1755353451935,-687.24,0.00022465,3]
[379639461,1755353451945,-480.0,0.00022465,3]
[379639462,1755353451954,-480.0,0.00022465,3]
[379639463,1755353451963,-480.0,0.00022465,3]
[379639464,1755353451973,-480.0,0.00022465,3]
[379639465,1755353451982,-735.28,0.00022465,3]
[379639466,1755353451991,-621.12,0.00022465,3]
[379639467,1755353452000,-429.77871362,0.00022465,3]
[379639468,1755353452010,-480.0,0.00022465,3]
[379639469,1755353452020,-420.0,0.00022465,3]
[379639470,1755353452030,-480.0,0.00022465,3]
[379639471,1755353452039,-340.0,0.00022465,3]
[379639472,1755353452048,-480.0,0.00022465,3]
[379639473,1755353452057,-480.0,0.00022465,3]
[379639474,1755353452066,-559.46,0.00022465,3]
[379639475,1755353452075,-480.0,0.00022465,3]
[379639476,1755353452085,-480.0,0.00022465,3]
[379639477,1755353452096,-480.0,0.00022465,3]
[379639478,1755353452105,-1030.48,0.00022465,3]
[379639479,1755353452115,-480.0,0.00022465,3]
[379639480,1755353452125,-435.96,0.00022465,3]
[379639481,1755353452134,-542.53,0.00022465,3]
[379639482,1755353452143,-442.79101781,0.00022465,3]
[379639483,1755353452154,-151.0,0.00022465,7]
[379639484,1755353452163,-511.09,0.00022465,3]
[379639485,1755353452172,-440.0,0.00022465,3]
[379639486,1755353452183,-181.543845,0.00022465,3]
[379639487,1755353452192,-625.33,0.00022465,3]
[379639488,1755353452202,-480.0,0.00022465,3]
[379639489,1755353452211,-480.0,0.00022465,3]
[379639490,1755353452220,-276.926434,0.00022465,7]
[379639491,1755353452230,-777.47,0.00022465,3]
[379639492,1755353452240,-280.333419,0.00022465,7]
[379639493,1755353452250,-480.0,0.00022465,3]
[379639494,1755353452259,-480.0,0.00022465,3]
[379639495,1755353452268,-388.03025789,0.00022465,3]
[379639496,1755353452278,-648.88,0.00022465,3]
[379639497,1755353452289,-420.0,0.00022465,3]
[379639498,1755353452299,-188.58922377,0.00022465,3]
[379639499,1755353452308,-480.0,0.00022465,3]
[379639500,1755353452318,-480.0,0.00022465,3]
[379639501,1755353452327,-480.0,0.00022465,3]
[379639502,1755353452337,-151.0,0.00022465,7]
[379639503,1755353452346,-420.0,0.00022465,3]
[379639504,1755353452356,-410.34653919,0.00022465,3]
[379639505,1755353452366,-641.35,0.00022465,3]
[379639506,1755353452375,-1746.42,0.00022465,3]
[379639507,1755353452386,-460.0,0.00022465,3]
[379639508,1755353452395,-165.404149,0.00022465,7]
[379639509,1755353452405,-480.0,0.00022465,3]
[379639510,1755353452414,-480.0,0.00022465,3]
[379639511,1755353452425,-460.0,0.00022465,3]
[379639512,1755353452436,-480.0,0.00022465,3]
[379639513,1755353452451,-480.0,0.00022465,3]
[379639514,1755353452466,-447.0359992,0.00022465,3]
[379639515,1755353452476,-480.0,0.00022465,3]
[379639516,1755353452486,-480.0,0.00022465,3]
[379639517,1755353452496,-480.0,0.00022465,3]
[379639518,1755353452507,-480.0,0.00022465,3]
[379639519,1755353452518,-642.03,0.00022465,3]
[379639520,1755353452528,-480.0,0.00022465,3]
[379639521,1755353452539,-1685.93,0.00022465,3]
[379639522,1755353452549,-2618.84,0.00022465,3]
[379639523,1755353452561,-499.67140035,0.00022465,3]
[379639524,1755353452572,-1283.36,0.00022465,3]
[379639525,1755353452582,-480.0,0.00022465,3]
[379639526,1755353452592,-400.0,0.00022465,3]
[379639527,1755353452602,-480.0,0.00022465,3]
[379639528,1755353452611,-480.0,0.00022465,3]
[379639529,1755353452621,-537.91810537,0.00022465,3]
[379639530,1755353452630,-480.0,0.00022465,3]
[379639531,1755353452639,-480.0,0.00022465,3]
[379639532,1755353452650,-273.697818,0.00022465,7]
[379639533,1755353452660,-480.0,0.00022465,3]
[379639534,1755353452670,-480.0,0.00022465,3]
[379639535,1755353452680,-480.0,0.00022465,3]
[379639536,1755353452692,-273.697818,0.00022465,7]
[379639537,1755353452702,-499.57,0.00022465,3]
[379639538,1755353452711,-250.02555487,0.00022465,3]
[379639539,1755353452720,-480.0,0.00022465,3]
[379639540,1755353452730,-290.57340762,0.00022465,3]
[379639541,1755353452739,-480.0,0.00022465,3]
[379639542,1755353452748,-480.0,0.00022465,3]
[379639543,1755353452759,-480.0,0.00022465,3]
[379639544,1755353452769,-911.77,0.00022465,3]
[379639545,1755353452778,-590.8,0.00022465,3]
[379639546,1755353452787,-480.0,0.00022465,3]
[379639547,1755353452796,-444.84206941,0.00022465,3]
[379639548,1755353452805,-480.0,0.00022465,3]
[379639549,1755353452814,-480.0,0.00022465,3]
[379639550,1755353452823,-480.0,0.00022465,3]
[379639551,1755353452832,-480.0,0.00022465,3]
[379639552,1755353452841,-480.0,0.00022465,3]
[379639553,1755353452851,-480.0,0.00022465,3]
[379639554,1755353452948,-480.0,0.00022465,3]
[379639555,1755353452966,-480.0,0.00022465,3]
[379639556,1755353452976,-460.0,0.00022465,3]
[379639557,1755353452986,-480.0,0.00022465,3]
[379639558,1755353452996,-561.27,0.00022465,3]
[379639559,1755353453007,-417.15472785,0.00022465,7]
[379639560,1755353453016,-366.25110417,0.00022465,3]
[379639561,1755353453026,-480.0,0.00022465,3]
[379639562,1755353453036,-460.0,0.00022465,3]
[379639563,1755353453046,-480.0,0.00022465,3]
[379639564,1755353453055,-480.0,0.00022465,3]
[379639565,1755353453064,-480.0,0.00022465,3]
[379639566,1755353453073,-480.0,0.00022465,3]
[379639567,1755353453082,-1115.43,0.00022465,3]
[379639568,1755353453092,-151.0,0.00022465,7]
[379639569,1755353453101,-801.52,0.00022465,3]
[379639570,1755353453112,-4267.9,0.00022465,3]
[379639571,1755353453123,-480.0,0.00022465,3]
[379639572,1755353453132,-480.0,0.00022465,3]
[379639573,1755353453142,-712.85,0.00022465,3]
[379639574,1755353453151,-850.8,0.00022465,3]
[379639575,1755353453161,-842.65,0.00022465,3]
[379639576,1755353453170,-460.0,0.00022465,3]
[379639577,1755353453179,-480.0,0.00022465,3]
[379639578,1755353453189,-480.0,0.00022465,3]
[379639579,1755353453199,-1164.13,0.00022465,3]
[379639580,1755353453208,-945.03,0.00022465,3]
[379639581,1755353453218,-393.50303492,0.00022465,3]
[379639582,1755353453227,-706.43,0.00022465,2]
[379639583,1755353453236,-480.0,0.00022465,3]
[379639584,1755353453246,-480.0,0.00022465,3]
[379639585,1755353453256,-580.73,0.00022465,3]
[379639586,1755353453265,-1586.41,0.00022465,3]
[379639587,1755353453275,-912.96,0.00022465,3]
[379639588,1755353453284,-480.0,0.00022465,3]
[379639589,1755353453293,-480.0,0.00022465,3]
[379639590,1755353453303,-480.0,0.00022465,3]
[379639591,1755353453312,-1608.334971,0.00022465,7]
[379639592,1755353453321,-480.0,0.00022465,3]
[379639593,1755353453331,-460.0,0.00022465,3]
[379639594,1755353453340,-480.0,0.00022465,3]
[379639595,1755353453349,-517.32,0.00022465,3]
[379639596,1755353453358,-480.0,0.00022465,3]
[379639597,1755353453367,-480.0,0.00022465,3]
[379639598,1755353453377,-1608.334971,0.00022465,7]
[379639599,1755353453386,-480.0,0.00022465,3]
[379639600,1755353453395,-1507.41,0.00022465,3]
[379639601,1755353453405,-480.0,0.00022465,3]
[379639602,1755353453414,-462.1417622,0.00022465,7]
[379639603,1755353453424,-1455.76,0.00022465,3]
[379639604,1755353453433,-2058.06,0.00022465,3]
[379639605,1755353453442,-1538.7,0.00022465,3]
[379639606,1755353453451,-1648.94,0.00022465,3]
[379639607,1755353453460,-725.07,0.00022465,3]
[379639608,1755353453469,-196.14675918,0.00022465,3]
[379639609,1755353453478,-480.0,0.00022465,3]
[379639610,1755353453488,-498.02636948,0.00022465,3]
[379639611,1755353453498,-1440.63,0.00022465,3]
[379639612,1755353453507,-1047.99,0.00022465,3]
[379639613,1755353453516,-1234.75,0.00022465,3]
[379639614,1755353453527,-480.0,0.00022465,3]
[379639615,1755353453536,-1998.03,0.00022465,3]
[379639616,1755353453545,-8181.88,0.00022465,3]
[379639617,1755353453554,-696.66,0.00022465,3]
[379639618,1755353453565,-14304.2,0.00022465,3]
[379639619,1755353453576,-1327.91,0.00022465,3]
[379639620,1755353453585,-1241.28,0.00022465,3]
[379639621,1755353453595,-484.10346704,0.00022465,3]
[379639622,1755353453605,-480.0,0.00022465,3]
[379639623,1755353453614,-716.28,0.00022465,3]
[379639624,1755353453625,-480.0,0.00022465,3]
[379639625,1755353453638,-2985.37,0.00022465,3]
[379639626,1755353453649,-480.0,0.00022465,3]
[379639627,1755353453660,-480.0,0.00022465,3]
[379639628,1755353453672,-1683.56,0.00022465,3]
[379639629,1755353453682,-480.0,0.00022465,3]
[379639630,1755353453694,-480.0,0.00022465,3]
[379639631,1755353453703,-1077.63,0.00022465,3]
[379639632,1755353453723,-460.0,0.00022465,3]
[379639633,1755353453743,-863.07,0.00022465,3]
[379639634,1755353453759,-1370.56,0.00022465,3]
[379639635,1755353453778,-828.3,0.00022465,3]
[379639636,1755353453797,-480.0,0.00022465,3]
[379639637,1755353453813,-480.0,0.00022465,3]
[379639638,1755353453829,-3864.78,0.00022465,3]
[379639639,1755353453847,-422.05535552,0.00022465,3]
[379639640,1755353453861,-480.0,0.00022465,3]
[379639641,1755353453878,-480.0,0.00022465,3]
[379639642,1755353453897,-1224.19,0.00022465,3]
[379639643,1755353453917,-480.0,0.00022465,3]
[379639644,1755353453935,-481.15,0.00022465,3]
[379639645,1755353453948,-1269.6,0.00022465,3]
[379639646,1755353453966,-420.0,0.00022465,3]
[379639647,1755353453982,-480.0,0.00022465,3]
[379639648,1755353453998,-480.0,0.00022465,3]
[379639649,1755353454011,-1616.48,0.00022465,3]
[379639650,1755353454032,-480.0,0.00022465,3]
[379639651,1755353454101,-480.0,0.00022465,3]
[379639652,1755353454126,-480.0,0.00022465,3]
[379639653,1755353454140,-480.0,0.00022465,3]
[379639654,1755353454154,-989.31,0.00022465,3]
[379639655,1755353454169,-480.0,0.00022465,3]
[379639656,1755353454184,-480.0,0.00022465,3]
[379639657,1755353454199,-3116.88,0.00022465,3]
[379639658,1755353454214,-480.0,0.00022465,3]
[379639659,1755353454230,-664.97,0.00022465,3]
[379639660,1755353454245,-480.0,0.00022465,3]
[379639661,1755353454259,-1870.97,0.00022465,3]
[379639662,1755353454272,-420.0,0.00022465,3]
[379639663,1755353454286,-480.0,0.00022465,3]
[379639664,1755353454300,-480.0,0.00022465,3]
[379639665,1755353454316,-1001.59,0.00022465,3]
[379639666,1755353454330,-480.0,0.00022465,3]
[379639667,1755353454344,-2311.19,0.00022465,3]
[379639668,1755353454357,-5094.23,0.00022465,3]
[379639669,1755353454372,-189.318128,0.00022465,7]
[379639670,1755353454387,-597.74197553,0.00022465,3]
[379639671,1755353454401,-1553.37,0.00022465,3]
[379639672,1755353454414,-673.23,0.00022465,3]
[379639673,1755353454428,-564.43,0.00022465,3]
[379639674,1755353454442,-189.318128,0.00022465,7]
[379639675,1755353454455,-825.37,0.00022465,3]
[379639676,1755353454469,-611.28,0.00022465,3]
[379639677,1755353454482,-675.28,0.00022465,3]
[379639678,1755353454496,-1516.0,0.00022465,3]
[379639679,1755353454510,-480.0,0.00022465,3]
[379639680,1755353454524,-1152.23,0.00022465,3]
[379639681,1755353454538,-1089.15,0.00022465,3]
[379639682,1755353454552,-480.0,0.00022465,3]
[379639683,1755353454566,-480.0,0.00022465,3]
[379639684,1755353454580,-3261.08,0.00022465,3]
[379639685,1755353454595,-480.0,0.00022465,3]
[379639686,1755353454609,-475.43559239,0.00022465,3]
[379639687,1755353454623,-480.0,0.00022465,3]
[379639688,1755353454637,-175.73310218,0.00022465,3]
[379639689,1755353454651,-480.0,0.00022465,3]
[379639690,1755353454664,-1559.07,0.00022465,3]
[379639691,1755353454677,-480.0,0.00022465,3]
[379639692,1755353454694,-1488.08,0.00022465,3]
[379639693,1755353454708,-480.0,0.00022465,3]
[379639694,1755353454721,-480.0,0.00022465,3]
[379639695,1755353454737,-480.0,0.00022465,3]
[379639696,1755353454750,-480.0,0.00022465,3]
[379639697,1755353454766,-480.0,0.00022465,3]
[379639698,1755353454780,-268.931966,0.00022465,7]
[379639699,1755353454793,-506.77,0.00022465,3]
[379639700,1755353454807,-13739.85,0.00022465,3]
[379639701,1755353454820,-460.0,0.00022465,3]
[379639702,1755353454832,-480.0,0.00022465,3]
[379639703,1755353454842,-268.931966,0.00022465,7]
[379639704,1755353454851,-406.44582252,0.00022465,3]
[379639705,1755353455283,-73.55417748,0.00022465,3]
[379639706,1755353455293,-243.768882,0.00022465,7]
[379639707,1755353455302,-440.0,0.00022465,3]
[379639708,1755353455312,-1408.83,0.00022465,3]
[379639709,1755353455321,-480.0,0.00022465,3]
[379639710,1755353455331,-10254.07,0.00022465,3]
[379639711,1755353455341,-480.0,0.00022465,3]
[379639712,1755353455350,-1187.41,0.00022465,3]
[379639713,1755353455360,-1051.04,0.00022465,3]
[379639714,1755353455370,-480.0,0.00022465,3]
[379639715,1755353455379,-243.768882,0.00022465,7]
[379639716,1755353455390,-3975.4,0.00022465,3]
[379639717,1755353455399,-151.0,0.00022465,7]
[379639718,1755353455408,-480.0,0.00022465,3]
[379639719,1755353455418,-565.84,0.00022465,3]
[379639720,1755353455427,-480.0,0.00022465,3]
[379639721,1755353455436,-1716.74,0.00022465,3]
[379639722,1755353455446,-480.0,0.00022465,3]
[379639723,1755353455455,-480.0,0.00022465,3]
[379639724,1755353455464,-480.0,0.00022465,3]
[379639725,1755353455473,-1694.72,0.00022465,3]
[379639726,1755353455483,-420.0,0.00022465,3]
[379639727,1755353455493,-480.0,0.00022465,3]
[379639728,1755353455502,-480.0,0.00022465,3]
[379639729,1755353455512,-480.0,0.00022465,3]
[379639730,1755353455521,-480.0,0.00022465,3]
[379639731,1755353455531,-5593.13,0.00022465,3]
[379639732,1755353455540,-480.0,0.00022465,3]
[379639733,1755353455550,-1221.03,0.00022465,3]
[379639734,1755353455559,-480.0,0.00022465,3]
[379639735,1755353455569,-480.0,0.00022465,3]
[379639736,1755353455579,-681.53,0.00022465,3]
[379639737,1755353455588,-480.0,0.00022465,3]
[379639738,1755353455598,-480.0,0.00022465,3]
[379639739,1755353455607,-460.0,0.00022465,3]
[379639740,1755353455617,-671.59,0.00022465,3]
[379639741,1755353455627,-480.0,0.00022465,3]
[379639742,1755353455636,-159.71095547,0.00022466,2]
[379639743,1755353455645,-159.71095546,0.00022466,2]
[379639744,1755353455654,-160.7608968,0.00022466,2]
[379639745,1755353455663,-500.0,0.00022473,2]
[379639746,1755353455672,-150.0,0.00022473,2]
[379639747,1755353455682,-500.0,0.00022473,2]
[379639748,1755353455695,-500.0,0.00022473,2]
[379639749,1755353455705,-500.0,0.00022473,2]
[379639750,1755353455714,-154.54537127,0.00022473,2]
[379639751,1755353455723,-162.41400814,0.00022473,2]
[379639752,1755353455733,-500.0,0.00022473,2]
[379639753,1755353455743,-500.0,0.00022473,2]
[379639754,1755353455752,-500.0,0.00022473,2]
[379639755,1755353455761,-500.0,0.00022473,2]
[379639756,1755353455771,-500.0,0.00022473,2]
[379639757,1755353455782,-500.0,0.00022473,2]
[379639758,1755353455791,-500.0,0.00022473,2]
[379639759,1755353455800,-500.0,0.00022473,2]
[379639760,1755353455810,-501.32411645,0.00022473,2]
[379639761,1755353455819,-500.0,0.00022473,2]
[379639762,1755353455829,-622.01808122,0.00022473,2]
[379639763,1755353455839,-500.0,0.00022473,2]
[379639764,1755353455849,-502.82370544,0.00022473,2]
[379639765,1755353455858,-500.0,0.00022473,2]
[379639766,1755353455868,-500.0,0.00022473,2]
[379639767,1755353455877,-206.75283235,0.00022473,2]
[379639768,1755353455888,-500.0,0.00022473,2]
[379639769,1755353455898,-500.0,0.00022473,2]
[379639770,1755353455907,-500.0,0.00022473,2]
[379639771,1755353455916,-500.0,0.00022473,2]
[379639772,1755353455926,-195.74148035,0.00022473,2]
[379639773,1755353455935,-500.0,0.00022473,2]
[379639774,1755353455944,-500.0,0.00022473,2]
[379639775,1755353455954,-500.0,0.00022473,2]
[379639776,1755353455963,-500.0,0.00022473,2]
[379639777,1755353455972,-502.07243738,0.00022473,2]
[379639778,1755353455982,-500.0,0.00022473,2]
[379639779,1755353455991,-258.66738447,0.00022473,2]
[379639780,1755353456000,-185.40567064,0.00022473,2]
[379639781,1755353456010,-500.0,0.00022473,2]
[379639782,1755353456019,-160.1795047,0.00022473,2]
[379639783,1755353456028,-502.95669463,0.00022473,2]
[379639784,1755353456037,-500.0,0.00022473,2]
[379639785,1755353456047,-158.59536301,0.00022473,2]
[379639786,1755353456056,-247.38662679,0.00022473,2]
[379639787,1755353456065,-500.0,0.00022473,2]
[379639788,1755353456074,-158.59369277,0.00022473,2]
[379639789,1755353456083,-500.0,0.00022473,2]
[379639790,1755353456093,-500.0,0.00022473,2]
[379639791,1755353456102,-500.0,0.00022473,2]
[379639792,1755353456111,-323.01291479,0.00022473,2]
[379639793,1755353456122,-433.30891369,0.00022473,2]
[379639794,1755353456132,-500.45548213,0.00022473,2]
[379639795,1755353456141,-500.0,0.00022473,2]
[379639796,1755353456151,-156.870479,0.00022495,2]
[379639797,1755353456161,-202.41,0.000225,7]
[379639798,1755353456171,-27043.2065796,0.000225,2]
[379639799,1755353456183,-4596.95193995,0.000225,2]
[379639800,1755353456197,-58965.00000001,0.000225,2]
[379639801,1755353456551,-480.0,0.00021917,3]
[379639802,1755353456561,-480.0,0.00021917,3]
[379639803,1755353456570,-480.0,0.00022191,3]
[379639804,1755353456580,-568.43329911,0.00022191,3]
[379639805,1755353456589,-480.0,0.00022465,3]
[379639806,1755353456598,-41497.11227969,0.000225,2]
[379639807,1755353456610,-322.89691422,0.000225,2]
[379639808,1755353456621,-1639.4978262,0.000225,2]
[379639809,1755353456632,-11754.78446033,0.000225,2]
[379639810,1755353456642,-151.0,0.000225,7]
[379639811,1755353456651,-151.0,0.000225,7]
[379639812,1755353456661,-151.0,0.000225,7]
[379639813,1755353456670,-151.0,0.000225,7]
[379639814,1755353456679,-151.0,0.000225,7]
[379639815,1755353456694,-151.0,0.000225,7]
[379639816,1755353456703,-246.867869,0.000225,7]
[379639817,1755353456712,-246.867869,0.000225,7]
[379639818,1755353456721,-250.084977,0.000225,7]
[379639819,1755353456733,-1196.183484,0.000225,7]
[379639820,1755353456743,-250.084977,0.000225,7]
[379639821,1755353456752,-291.551885,0.000225,7]
[379639822,1755353456763,-151.0,0.000225,7]
[379639823,1755353456772,-151.0,0.000225,7]
[379639824,1755353456782,-151.0,0.000225,7]
[379639825,1755353456791,-151.0,0.000225,7]
[379639826,1755353456801,-151.0,0.000225,7]
[379639827,1755353456811,-265.370845,0.000225,7]
[379639828,1755353456820,-265.370845,0.000225,7]
[379639829,1755353456830,-185.236521,0.000225,7]
[379639830,1755353456840,-185.236521,0.000225,7]
[379639831,1755353456850,-151.0,0.000225,7]
[379639832,1755353456860,-170.941291,0.000225,7]
[379639833,1755353456869,-170.941291,0.000225,7]
[379639834,1755353456879,-202.369197,0.000225,7]
[379639835,1755353456888,-202.369197,0.000225,7]
[379639836,1755353456897,-151.0,0.000225,7]
[379639837,1755353456907,-151.0,0.000225,7]
[379639838,1755353456915,-151.0,0.000225,7]
[379639839,1755353456924,-171.99,0.000225,7]
[379639840,1755353456934,-171.99,0.000225,7]
[379639841,1755353456944,-151.0,0.000225,5]
[379639842,1755353456953,-151.0,0.000225,7]
[379639843,1755353456962,-151.0,0.000225,7]
[379639844,1755353456971,-151.0,0.000225,7]
[379639845,1755353456980,-623.697914,0.000225,7]
[379639846,1755353456990,-216.416392,0.000225,7]
[379639847,1755353456999,-623.697914,0.000225,7]
[379639848,1755353457009,-216.416392,0.000225,7]
[379639849,1755353457018,-151.0,0.000225,7]
[379639850,1755353457028,-151.0,0.000225,7]
[379639851,1755353457038,-151.0,0.000225,7]
[379639852,1755353457047,-189.318128,0.000225,7]
[379639853,1755353457056,-189.318128,0.000225,7]
[379639854,1755353457065,-268.931966,0.000225,7]
[379639855,1755353457074,-268.931966,0.000225,7]
[379639856,1755353457083,-243.768882,0.000225,7]
[379639857,1755353457092,-243.768882,0.000225,7]
[379639858,1755353457101,-645.458154,0.00022519,7]
[379639859,1755353457111,-645.458154,0.00022519,7]
[379639860,1755353457120,-1049.034978,0.00022519,7]
[379639861,1755353457129,-1049.034978,0.00022519,7]
[379639862,1755353457139,-1274.754554,0.00022519,7]
[379639863,1755353457148,-1274.754554,0.00022519,7]
[379639864,1755353457157,-501.43765191,0.00022521,2]
[379639865,1755353457166,-504.34140563,0.00022521,2]
[379639866,1755353457176,-502.45269096,0.00022521,2]
[379639867,1755353457185,-501.01761943,0.00022521,2]
[379639868,1755353457195,-1000.0,0.00022521,2]
[379639869,1755353457204,-1000.0,0.00022521,2]
[379639870,1755353457214,-503.11918519,0.00022521,2]
[379639871,1755353457224,-1000.0,0.00022521,2]
[379639872,1755353457233,-1000.0,0.00022521,2]
[379639873,1755353457243,-1000.0,0.00022521,2]
[379639874,1755353457252,-1000.0,0.00022521,2]
[379639875,1755353457262,-1000.0,0.00022521,2]
[379639876,1755353457272,-1000.0,0.00022521,2]
[379639877,1755353457281,-1000.0,0.00022521,2]
[379639878,1755353457291,-156.870479,0.0002254,30]
[379639879,1755353457301,-332.0,0.00022558,2]
[379639880,1755353457311,-640.212729,0.00022558,7]
[379639881,1755353457320,-640.212729,0.00022558,7]
[379639882,1755353457329,-151.0,0.00022558,7]
[379639883,1755353457339,-151.0,0.00022558,7]
[379639884,1755353457348,-151.0,0.00022558,7]
[379639885,1755353457358,-151.0,0.00022558,7]
[379639886,1755353457368,-168.0,0.00022566,2]
[379639887,1755353457378,-151.0,0.000226,6]
[379639888,1755353457387,-250.0,0.00022607,2]
[379639889,1755353457398,-206.472,0.00022607,2]
[379639890,1755353457408,-220.937,0.00022607,2]
[379639891,1755353457418,-250.0,0.00022607,2]
[379639892,1755353457563,-261.19,0.00022607,2]
[379639893,1755353457574,-219.175,0.00022607,2]
[379639894,1755353457583,-256.588885,0.0002261,7]
[379639895,1755353457593,-256.588885,0.0002261,7]
[379639896,1755353457602,-1180.592115,0.0002261,7]
[379639897,1755353457612,-192.126041,0.0002261,7]
[379639898,1755353457622,-192.126041,0.0002261,7]
[379639899,1755353457631,-260.0,0.00022621,2]
[379639900,1755353457640,-168.0,0.00022646,2]
[379639901,1755353457650,-221.0,0.00022674,2]
[379639902,1755353457659,-153.0,0.00022685,2]
[379639903,1755353457669,-153.0,0.00022685,2]
[379639904,1755353457678,-306.0,0.00022685,2]
[379639905,1755353457692,-153.0,0.00022685,2]
[379639906,1755353457701,-153.0,0.00022685,2]
[379639907,1755353457711,-153.0,0.00022685,2]
[379639908,1755353457720,-396.2153682,0.00022685,2]
[379639909,1755353457731,-700.0,0.000227,3]
[379639910,1755353457740,-1000.0,0.00022721,2]
[379639911,1755353457750,-1000.0,0.00022721,2]
[379639912,1755353457760,-500.45994459,0.00022721,2]
[379639913,1755353457769,-1005.54523782,0.00022721,2]
[379639914,1755353457779,-413.0,0.00022722,2]
[379639915,1755353457788,-151.0,0.00022739,7]
[379639916,1755353457799,-151.0,0.00022739,7]
[379639917,1755353457809,-151.0,0.00022739,7]
[379639918,1755353457818,-783.040981,0.00022739,7]
[379639919,1755353457828,-783.040981,0.00022739,7]
[379639920,1755353457837,-151.0,0.00022739,7]
[379639921,1755353457848,-151.0,0.00022739,7]
[379639922,1755353457858,-151.0,0.00022739,7]
[379639923,1755353457867,-191.232987,0.00022739,7]
[379639924,1755353457877,-191.232987,0.00022739,7]
[379639925,1755353457886,-154.069962,0.00022739,7]
[379639926,1755353457896,-151.0,0.00022739,7]
[379639927,1755353457905,-250.084977,0.00022739,7]
[379639928,1755353457914,-1196.183484,0.00022739,7]
[379639929,1755353457923,-250.084977,0.00022739,7]
[379639930,1755353457933,-151.0,0.00022739,7]
[379639931,1755353457942,-151.0,0.00022739,7]
[379639932,1755353457951,-151.0,0.00022739,7]
[379639933,1755353457960,-151.0,0.00022739,7]